fUSD/lending_fUSD_20240425
["ID","MTS","AMOUNT","RATE_DAILY","PERIOD"]
[323529033,1714072244481,-500.0,0.00010958,2]
[323529034,1714072244490,-1054.99,0.00010958,2]
[323529035,1714072244500,-509.6,0.00010958,2]
[323529036,1714072244509,-550.92260623,0.00010958,2]
[323529037,1714072244518,-500.0,0.00010958,2]
[323529038,1714072244527,-500.0,0.00010958,2]
[323529039,1714072244538,-1623.56,0.00010958,2]
[323529040,1714072244547,-716.65,0.00010958,2]
[323529041,1714072244556,-500.0,0.00010958,2]
[323529042,1714072244566,-530.35698914,0.00010958,2]
[323529043,1714072244575,-500.0,0.00010958,2]
[323529044,1714072244585,-500.0,0.00010958,2]
[323529045,1714072244594,-500.0,0.00010958,2]
[323529046,1714072244603,-1260.14,0.00010958,2]
[323529047,1714072244612,-583.27,0.00010958,2]
[323529048,1714072244622,-500.0,0.00010958,2]
[323529049,1714072244631,-2243.63,0.00010958,2]
[323529050,1714072244641,-500.0,0.00010958,2]
[323529051,1714072244650,-1143.45,0.00010958,2]
[323529052,1714072244659,-937.03,0.00010958,2]
[323529053,1714072244669,-500.0,0.00010958,2]
[323529054,1714072244679,-500.0,0.00010958,2]
[323529055,1714072244689,-500.0,0.00010958,2]
[323529056,1714072244698,-500.0,0.00010958,2]
[323529057,1714072244708,-500.0,0.00010958,2]
[323529058,1714072244720,-500.0,0.00010958,2]
[323529059,1714072244732,-588.18,0.00010958,2]
[323529060,1714072244741,-500.0,0.00010958,2]
[323529061,1714072244752,-544.11,0.00010958,2]
[323529062,1714072244762,-1474.14,0.00010958,2]
[323529063,1714072244771,-566.17,0.00010958,2]
[323529064,1714072244781,-500.0,0.00010958,2]
[323529065,1714072244790,-675.26,0.00010958,2]
[323529066,1714072244799,-500.0,0.00010958,2]
[323529067,1714072244810,-734.83,0.00010958,2]
[323529068,1714072244820,-500.0,0.00010958,2]
[323529069,1714072244829,-500.0,0.00010958,2]
[323529070,1714072244838,-743.19,0.00010958,2]
[323529071,1714072244848,-724.51,0.00010958,2]
[323529072,1714072244858,-500.0,0.00010958,2]
[323529073,1714072244871,-1046.01,0.00010958,2]
[323529074,1714072244880,-961.95,0.00010958,2]
[323529075,1714072244890,-500.0,0.00010958,2]
[323529076,1714072244899,-221.71,0.00010958,2]
[323529077,1714072244910,-4870.06,0.00010958,2]
[323529078,1714072244920,-516.54,0.00010958,2]
[323529079,1714072244929,-500.0,0.00010958,2]
[323529080,1714072244938,-500.0,0.00010958,2]
[323529081,1714072244949,-500.0,0.00010958,2]
[323529082,1714072244959,-500.0,0.00010958,2]
[323529083,1714072244968,-500.0,0.00010958,2]
[323529084,1714072244978,-508.48345372,0.00010958,2]
[323529085,1714072244987,-500.0,0.00010958,2]
[323529086,1714072244996,-500.0,0.00010958,2]
[323529087,1714072245005,-334.16936624,0.00010958,2]
[323529088,1714072245015,-3945.45,0.00010958,2]
[323529089,1714072245024,-3337.61,0.00010958,2]
[323529090,1714072245034,-417.42,0.00010958,2]
[323529091,1714072245043,-500.0,0.00010958,2]
[323529092,1714072245053,-988.68,0.00010958,2]
[323529093,1714072245062,-457.61,0.00010958,2]
[323529094,1714072245071,-500.0,0.00010958,2]
[323529095,1714072245081,-500.0,0.00010958,2]
[323529096,1714072245090,-18401.14,0.00010958,2]
[323529097,1714072245100,-1728.06,0.00010958,2]
[323529098,1714072245110,-500.0,0.00010958,2]
[323529099,1714072245120,-1887.01,0.00010958,2]
[323529100,1714072245129,-595.59,0.00010958,2]
[323529101,1714072245139,-500.0,0.00010958,2]
[323529102,1714072245148,-500.0,0.00010958,2]
[323529103,1714072245158,-500.0,0.00010958,2]
[323529104,1714072245167,-151.0,0.00010959,2]
[323529105,1714072245177,-151.0,0.00010959,2]
[323529106,1714072245187,-151.0,0.00010959,2]
[323529107,1714072245197,-151.0,0.00010959,2]
[323529108,1714072245207,-150.0,0.00010999,2]
[323529109,1714072245217,-307.04142215,0.00011,2]
[323529110,1714072245226,-310.46434743,0.00011032,2]
[323529111,1714072245235,-206.06084279,0.00011032,2]
[323529112,1714072245245,-676.51797178,0.00011094,2]
[323529113,1714072245254,-176.35323577,0.00011132,2]
[323529114,1714072245264,-9349.77622737,0.00011132,2]
[323529115,1714072245273,-151.0,0.00011132,2]
[323529116,1714072245282,-155.622756,0.00011132,2]
[323529117,1714072245291,-10000.0,0.00011132,2]
[323529118,1714072245301,-511.46,0.00011141,2]
[323529119,1714072245310,-4100.0,0.000112,4]
[323529120,1714072245319,-9349.77622734,0.00011202,2]
[323529121,1714072245328,-584.0,0.00011232,2]
[323529122,1714072245337,-500.0,0.00011232,2]
[323529123,1714072245346,-500.0,0.00011232,2]
[323529124,1714072245356,-500.0,0.00011232,2]
[323529125,1714072245366,-500.0,0.00011232,2]
[323529126,1714072245375,-500.0,0.00011232,2]
[323529127,1714072245384,-500.0,0.00011232,2]
[323529128,1714072245394,-500.0,0.00011232,2]
[323529129,1714072245405,-701.94,0.00011232,2]
[323529130,1714072245415,-500.0,0.00011232,2]
[323529131,1714072245425,-598.87,0.00011232,2]
[323529132,1714072245435,-500.0,0.00011232,2]
[323529133,1714072245445,-811.25,0.00011232,2]
[323529134,1714072245454,-500.0,0.00011232,2]
[323529135,1714072245465,-500.0,0.00011232,2]
[323529136,1714072245476,-500.0,0.00011232,2]
[323529137,1714072245485,-500.0,0.00011232,2]
[323529138,1714072245494,-586.64,0.00011232,2]
[323529139,1714072245502,-151.131793,0.00011232,2]
[323529140,1714072245512,-500.0,0.00011232,2]
[323529141,1714072245521,-500.0,0.00011232,2]
[323529142,1714072245531,-515.25988869,0.00011232,2]
[323529143,1714072245540,-500.0,0.00011232,2]
[323529144,1714072245550,-500.0,0.00011232,2]
[323529145,1714072245559,-728.4,0.00011232,2]
[323529146,1714072245568,-388.54,0.00011232,2]
[323529147,1714072245577,-500.0,0.00011232,2]
[323529148,1714072245586,-500.0,0.00011232,2]
[323529149,1714072245596,-500.0,0.00011232,2]
[323529150,1714072245606,-500.0,0.00011232,2]
[323529151,1714072245615,-500.0,0.00011232,2]
[323529152,1714072245625,-500.0,0.00011232,2]
[323529153,1714072245634,-500.0,0.00011232,2]
[323529154,1714072245643,-299.83216967,0.00011232,2]
[323529155,1714072245654,-500.0,0.00011232,2]
[323529156,1714072245664,-500.0,0.00011232,2]
[323529157,1714072245674,-500.0,0.00011232,2]
[323529158,1714072245683,-217.27085049,0.00011232,2]
[323529159,1714072245693,-488.52719443,0.00011232,2]
[323529160,1714072245702,-500.0,0.00011232,2]
[323529161,1714072245712,-651.42,0.00011232,2]
[323529162,1714072245721,-629.19,0.00011232,2]
[323529163,1714072245737,-906.83,0.00011232,2]
[323529164,1714072245747,-500.0,0.00011232,2]
[323529165,1714072245756,-500.0,0.00011232,2]
[323529166,1714072245766,-471.06,0.00011232,2]
[323529167,1714072245777,-500.0,0.00011232,2]
[323529168,1714072245786,-273.67176064,0.00011232,2]
[323529169,1714072245796,-500.0,0.00011232,2]
[323529170,1714072245805,-500.0,0.00011232,2]
[323529171,1714072245814,-556.61,0.00011232,2]
[323529172,1714072245823,-500.0,0.00011232,2]
[323529173,1714072245832,-747.21,0.00011232,2]
[323529174,1714072245841,-500.0,0.00011232,2]
[323529175,1714072245850,-624.51,0.00011232,2]
[323529176,1714072245861,-500.0,0.00011232,2]
[323529177,1714072245873,-500.0,0.00011232,2]
[323529178,1714072245883,-500.0,0.00011232,2]
[323529179,1714072245892,-581.52,0.00011232,2]
[323529180,1714072245903,-198.36089135,0.00011232,2]
[323529181,1714072245912,-500.0,0.00011232,2]
[323529182,1714072245922,-500.0,0.00011232,2]
[323529183,1714072245931,-500.0,0.00011232,2]
[323529184,1714072245942,-500.0,0.00011232,2]
[323529185,1714072245951,-500.0,0.00011232,2]
[323529186,1714072245962,-500.0,0.00011232,2]
[323529187,1714072245973,-500.0,0.00011232,2]
[323529188,1714072245989,-500.0,0.00011232,2]
[323529189,1714072245999,-699.29,0.00011232,2]
[323529190,1714072246009,-500.0,0.00011232,2]
[323529191,1714072246018,-500.0,0.00011232,2]
[323529192,1714072246027,-500.0,0.00011232,2]
[323529193,1714072246037,-621.41,0.00011232,2]
[323529194,1714072246047,-648.87,0.00011232,2]
[323529196,1714072246056,-500.0,0.00011232,2]
[323529197,1714072246066,-500.0,0.00011232,2]
[323529198,1714072246075,-500.0,0.00011232,2]
[323529199,1714072246085,-912.18,0.00011232,2]
[323529200,1714072246095,-500.0,0.00011232,2]
[323529201,1714072246104,-500.0,0.00011232,2]
[323529203,1714072246114,-500.0,0.00011232,2]
[323529205,1714072246123,-500.0,0.00011232,2]
[323529206,1714072246133,-500.0,0.00011232,2]
[323529207,1714072246143,-698.73,0.00011232,2]
[323529208,1714072246152,-500.0,0.00011232,2]
[323529210,1714072246162,-500.0,0.00011232,2]
[323529212,1714072246171,-500.0,0.00011232,2]
[323529214,1714072246181,-500.0,0.00011232,2]
[323529215,1714072246190,-356.22,0.00011232,2]
[323529217,1714072246200,-500.0,0.00011232,2]
[323529219,1714072246210,-500.0,0.00011232,2]
[323529220,1714072246219,-500.0,0.00011232,2]
[323529221,1714072246232,-500.0,0.00011232,2]
[323529222,1714072246242,-545.21,0.00011232,2]
[323529223,1714072246251,-500.0,0.00011232,2]
[323529224,1714072246261,-500.0,0.00011232,2]
[323529225,1714072246270,-500.0,0.00011232,2]
[323529226,1714072246280,-500.0,0.00011232,2]
[323529227,1714072246289,-651.31,0.00011232,2]
[323529228,1714072246299,-500.0,0.00011232,2]
[323529229,1714072246309,-500.0,0.00011232,2]
[323529233,1714072246373,-500.0,0.00011232,2]
[323529235,1714072246382,-705.83,0.00011232,2]
[323529237,1714072246391,-500.0,0.00011232,2]
[323529239,1714072246400,-500.0,0.00011232,2]
[323529241,1714072246409,-500.0,0.00011232,2]
[323529242,1714072246418,-328.45998132,0.00011232,2]
[323529243,1714072246427,-151.0,0.00011232,2]
[323529244,1714072246436,-500.0,0.00011232,2]
[323529245,1714072246446,-359.61,0.00011232,2]
[323529246,1714072246455,-500.0,0.00011232,2]
[323529249,1714072246464,-500.0,0.00011232,2]
[323529250,1714072246473,-500.0,0.00011232,2]
[323529253,1714072246485,-500.0,0.00011232,2]
[323529254,1714072246494,-523.64,0.00011232,2]
[323529256,1714072246503,-500.0,0.00011232,2]
[323529259,1714072246512,-500.0,0.00011232,2]
[323529261,1714072246521,-150.0,0.00011232,2]
[323529263,1714072246530,-500.0,0.00011232,2]
[323529265,1714072246539,-500.0,0.00011232,2]
[323529266,1714072246549,-500.0,0.00011232,2]
[323529268,1714072246558,-500.0,0.00011232,2]
[323529270,1714072246567,-500.0,0.00011232,2]
[323529273,1714072246577,-549.44,0.00011232,2]
[323529275,1714072246586,-500.0,0.00011232,2]
[323529276,1714072246595,-500.0,0.00011232,2]
[323529278,1714072246604,-500.0,0.00011232,2]
[323529280,1714072246613,-500.0,0.00011232,2]
[323529282,1714072246622,-500.0,0.00011232,2]
[323529285,1714072246631,-500.0,0.00011232,2]
[323529287,1714072246640,-500.0,0.00011232,2]
[323529289,1714072246649,-500.0,0.00011232,2]
[323529291,1714072246658,-500.0,0.00011232,2]
[323529292,1714072246667,-500.0,0.00011232,2]
[323529293,1714072246676,-500.0,0.00011232,2]
[323529295,1714072246686,-500.0,0.00011232,2]
[323529297,1714072246695,-500.0,0.00011232,2]
[323529299,1714072246705,-500.0,0.00011232,2]
[323529301,1714072246714,-628.37,0.00011232,2]
[323529303,1714072246723,-500.0,0.00011232,2]
[323529305,1714072246735,-513.68,0.00011232,2]
[323529307,1714072246744,-500.0,0.00011232,2]
[323529310,1714072246753,-661.59,0.00011232,2]
[323529312,1714072246763,-169.49,0.00011232,2]
[323529313,1714072246773,-282.00221196,0.00011232,2]
[323529315,1714072246782,-504.19,0.00011232,2]
[323529318,1714072246791,-500.0,0.00011232,2]
[323529319,1714072246801,-273.67,0.00011232,2]
[323529322,1714072246811,-500.0,0.00011232,2]
[323529323,1714072246820,-1033.64,0.00011232,2]
[323529325,1714072246829,-500.0,0.00011232,2]
[323529327,1714072246839,-500.0,0.00011232,2]
[323529330,1714072246849,-500.0,0.00011232,2]
[323529331,1714072246859,-500.0,0.00011232,2]
[323529333,1714072246870,-500.0,0.00011232,2]
[323529336,1714072246879,-830.16,0.00011232,2]
[323529338,1714072246888,-500.0,0.00011232,2]
[323529340,1714072246899,-500.0,0.00011232,2]
[323529341,1714072246908,-1280.99,0.00011232,2]
[323529344,1714072246917,-500.0,0.00011232,2]
[323529345,1714072246926,-500.0,0.00011232,2]
[323529347,1714072246936,-612.8,0.00011232,2]
[323529349,1714072246947,-1029.66,0.00011232,2]
[323529351,1714072246957,-500.0,0.00011232,2]
[323529353,1714072246966,-977.71,0.00011232,2]
[323529356,1714072246977,-500.0,0.00011232,2]
[323529357,1714072246987,-1803.77,0.00011232,2]
[323529359,1714072246996,-500.0,0.00011232,2]
[323529362,1714072247006,-500.0,0.00011232,2]
[323529363,1714072247016,-601.55,0.00011232,2]
[323529366,1714072247026,-1287.71,0.00011232,2]
[323529368,1714072247035,-500.0,0.00011232,2]
[323529369,1714072247045,-9364.94,0.00011232,2]
[323529371,1714072247054,-631.3,0.00011232,2]
[323529374,1714072247064,-500.0,0.00011232,2]
[323529375,1714072247073,-692.83,0.00011232,2]
[323529378,1714072247084,-500.0,0.00011232,2]
[323529379,1714072247093,-1184.15,0.00011232,2]
[323529381,1714072247128,-787.88,0.00011232,2]
[323529383,1714072247139,-1129.8,0.00011232,2]
[323529385,1714072247148,-151.0,0.00011232,2]
[323529388,1714072247158,-151.0,0.00011232,2]
[323529389,1714072247168,-500.0,0.00011232,2]
[323529392,1714072247178,-834.42,0.00011232,2]
[323529393,1714072247187,-999.87,0.00011232,2]
[323529395,1714072247197,-500.0,0.00011232,2]
[323529397,1714072247207,-612.57,0.00011232,2]
[323529400,1714072247217,-643.7,0.00011232,2]
[323529401,1714072247227,-7422.71,0.00011232,2]
[323529402,1714072247237,-500.0,0.00011232,2]
[323529403,1714072247248,-500.0,0.00011232,2]
[323529404,1714072247258,-500.0,0.00011232,2]
[323529405,1714072247267,-405.65221136,0.00011232,2]
[323529406,1714072247277,-500.0,0.00011232,2]
[323529407,1714072247286,-500.0,0.00011232,2]
[323529408,1714072247296,-6856.53,0.00011232,2]
[323529409,1714072247306,-839.55,0.00011232,2]
[323529410,1714072247317,-577.43,0.00011232,2]
[323529411,1714072247327,-1419.41,0.00011232,2]
[323529412,1714072247336,-21974.4,0.00011232,2]
[323529413,1714072247347,-500.0,0.00011232,2]
[323529414,1714072247357,-500.0,0.00011232,2]
[323529415,1714072247368,-500.0,0.00011232,2]
[323529416,1714072247378,-938.21,0.00011232,2]
[323529417,1714072247388,-649.26,0.00011232,2]
[323529418,1714072247398,-1322.72,0.00011232,2]
[323529419,1714072247408,-500.0,0.00011232,2]
[323529420,1714072247417,-500.0,0.00011232,2]
[323529421,1714072247428,-804.5,0.00011232,2]
[323529422,1714072247441,-1062.39,0.00011232,2]
[323529423,1714072247452,-932.22,0.00011232,2]
[323529424,1714072247465,-633.09,0.00011232,2]
[323529425,1714072247475,-500.0,0.00011232,2]
[323529426,1714072247486,-720.03,0.00011232,2]
[323529427,1714072247497,-2208.81,0.00011232,2]
[323529428,1714072247508,-500.0,0.00011232,2]
[323529429,1714072247519,-500.0,0.00011232,2]
[323529430,1714072247529,-1473.37,0.00011232,2]
[323529431,1714072247539,-1079.7,0.00011232,2]
[323529432,1714072247549,-988.84,0.00011232,2]
[323529433,1714072247559,-904.88,0.00011232,2]
[323529434,1714072247569,-500.0,0.00011232,2]
[323529435,1714072247580,-786.92,0.00011232,2]
[323529436,1714072247590,-797.68,0.00011232,2]
[323529437,1714072247602,-2622.43,0.00011232,2]
[323529438,1714072247614,-2385.05,0.00011232,2]
[323529439,1714072247624,-500.0,0.00011232,2]
[323529440,1714072247635,-500.0,0.00011232,2]
[323529441,1714072247645,-497.25041268,0.00011232,2]
[323529442,1714072247655,-536.56,0.00011232,2]
[323529443,1714072247665,-4191.09,0.00011232,2]
[323529444,1714072247674,-623.15,0.00011232,2]
[323529445,1714072247685,-3542.17,0.00011232,2]
[323529446,1714072247695,-801.28,0.00011232,2]
[323529447,1714072247705,-500.0,0.00011232,2]
[323529448,1714072247716,-646.72,0.00011232,2]
[323529449,1714072247726,-500.0,0.00011232,2]
[323529450,1714072247738,-500.0,0.00011232,2]
[323529451,1714072247749,-628.4,0.00011232,2]
[323529452,1714072247760,-922.51,0.00011232,2]
[323529453,1714072247770,-791.49,0.00011232,2]
[323529454,1714072247779,-599.24,0.00011232,2]
[323529455,1714072247790,-500.0,0.00011232,2]
[323529456,1714072247800,-500.0,0.00011232,2]
[323529457,1714072247810,-167.74126905,0.00011232,2]
[323529458,1714072247819,-816.35,0.00011232,2]
[323529459,1714072247830,-500.0,0.00011232,2]
[323529460,1714072247839,-687.58,0.00011232,2]
[323529461,1714072247848,-1216.56,0.00011232,2]
[323529462,1714072247857,-1260.7,0.00011232,2]
[323529463,1714072247868,-6209.52,0.00011232,2]
[323529464,1714072247877,-505.57,0.00011232,2]
[323529465,1714072247886,-591.22,0.00011232,2]
[323529466,1714072247895,-500.0,0.00011232,2]
[323529467,1714072247905,-1250.59,0.00011232,2]
[323529468,1714072247914,-500.0,0.00011232,2]
[323529469,1714072247924,-631.12,0.00011232,2]
[323529470,1714072247933,-717.44,0.00011232,2]
[323529471,1714072247942,-733.83,0.00011232,2]
[323529472,1714072247952,-500.0,0.00011232,2]
[323529473,1714072247961,-748.45,0.00011232,2]
[323529474,1714072247970,-566.08,0.00011232,2]
[323529475,1714072247980,-500.0,0.00011232,2]
[323529476,1714072247989,-500.0,0.00011232,2]
[323529477,1714072247998,-500.0,0.00011232,2]
[323529478,1714072248007,-823.22,0.00011232,2]
[323529479,1714072248017,-2327.22,0.00011232,2]
[323529480,1714072248026,-3761.34,0.00011232,2]
[323529481,1714072248036,-1902.06,0.00011232,2]
[323529482,1714072248046,-773.29,0.00011232,2]
[323529483,1714072248056,-500.0,0.00011232,2]
[323529484,1714072248065,-500.0,0.00011232,2]
[323529485,1714072248075,-917.43,0.00011232,2]
[323529486,1714072248085,-500.0,0.00011232,2]
[323529487,1714072248094,-601.25,0.00011232,2]
[323529488,1714072248104,-2884.75,0.00011232,2]
[323529489,1714072248113,-805.83,0.00011232,2]
[323529490,1714072248123,-1215.06,0.00011232,2]
[323529491,1714072248132,-609.97,0.00011232,2]
[323529492,1714072248142,-500.0,0.00011232,2]
[323529493,1714072248152,-500.0,0.00011232,2]
[323529494,1714072248162,-500.0,0.00011232,2]
[323529495,1714072248172,-609.47,0.00011232,2]
[323529496,1714072248182,-500.0,0.00011232,2]
[323529497,1714072248192,-1905.23,0.00011232,2]
[323529498,1714072248201,-2045.02,0.00011232,2]
[323529499,1714072248211,-1228.86,0.00011232,2]
[323529500,1714072248220,-500.0,0.00011232,2]
[323529501,1714072248232,-668.65,0.00011232,2]
[323529502,1714072248241,-500.0,0.00011232,2]
[323529503,1714072248251,-154.5,0.00011232,2]
[323529504,1714072248262,-500.0,0.00011232,2]
[323529505,1714072248272,-1054.99,0.00011232,2]
[323529506,1714072248283,-509.6,0.00011232,2]
[323529507,1714072248293,-1623.56,0.00011232,2]
[323529508,1714072248303,-716.65,0.00011232,2]
[323529509,1714072248313,-500.0,0.00011232,2]
[323529510,1714072248323,-500.0,0.00011232,2]
[323529511,1714072248334,-500.0,0.00011232,2]
[323529512,1714072248344,-500.0,0.00011232,2]
[323529513,1714072248354,-1260.14,0.00011232,2]
[323529514,1714072248365,-583.27,0.00011232,2]
[323529515,1714072248374,-500.0,0.00011232,2]
[323529516,1714072248384,-2243.63,0.00011232,2]
[323529517,1714072248394,-500.0,0.00011232,2]
[323529518,1714072248404,-1143.45,0.00011232,2]
[323529519,1714072248415,-937.03,0.00011232,2]
[323529520,1714072248426,-500.0,0.00011232,2]
[323529521,1714072248437,-500.0,0.00011232,2]
[323529522,1714072248448,-500.0,0.00011232,2]
[323529523,1714072248458,-500.0,0.00011232,2]
[323529524,1714072248468,-544.11,0.00011232,2]
[323529525,1714072248480,-566.17,0.00011232,2]
[323529526,1714072248490,-500.0,0.00011232,2]
[323529527,1714072248502,-1474.14,0.00011232,2]
[323529528,1714072248511,-500.0,0.00011232,2]
[323529529,1714072248521,-675.26,0.00011232,2]
[323529530,1714072248532,-734.83,0.00011232,2]
[323529531,1714072248543,-500.0,0.00011232,2]
[323529532,1714072248553,-743.19,0.00011232,2]
[323529533,1714072248564,-500.0,0.00011232,2]
[323529534,1714072248574,-724.51,0.00011232,2]
[323529535,1714072248585,-1046.01,0.00011232,2]
[323529536,1714072248598,-961.95,0.00011232,2]
[323529537,1714072248609,-500.0,0.00011232,2]
[323529538,1714072248620,-4870.06,0.00011232,2]
[323529539,1714072248631,-516.54,0.00011232,2]
[323529540,1714072248642,-500.0,0.00011232,2]
[323529541,1714072248653,-500.0,0.00011232,2]
[323529542,1714072248663,-571.99,0.00011232,2]
[323529543,1714072248673,-500.0,0.00011232,2]
[323529544,1714072248684,-500.0,0.00011232,2]
[323529545,1714072248694,-3945.45,0.00011232,2]
[323529546,1714072248704,-3337.61,0.00011232,2]
[323529547,1714072248716,-500.0,0.00011232,2]
[323529548,1714072248726,-988.68,0.00011232,2]
[323529549,1714072248737,-18401.14,0.00011232,2]
[323529550,1714072248747,-1728.06,0.00011232,2]
[323529551,1714072248759,-1887.01,0.00011232,2]
[323529552,1714072248772,-595.59,0.00011232,2]
[323529553,1714072248782,-238.24181277,0.00011232,2]
[323529554,1714072249184,-261.75818723,0.00011232,2]
[323529555,1714072249194,-500.0,0.00011232,2]
[323529556,1714072249205,-500.0,0.00011232,2]
[323529557,1714072249217,-310.46434739,0.00011249,2]
[323529558,1714072249228,-9349.77622734,0.00011272,2]
[323529559,1714072249239,-150.0,0.00011296,2]
[323529560,1714072249250,-5500.0,0.000113,4]
[323529561,1714072249259,-363.20473629,0.00011303,2]
[323529562,1714072249269,-1001.58983864,0.00011303,2]
[323529563,1714072249279,-676.51797178,0.00011329,2]
[323529564,1714072249289,-243.88576995,0.00011341,2]
[323529565,1714072249869,-236.58560073,0.00010957,2]
[323529566,1714072249881,-500.0,0.00010958,2]
[323529567,1714072249891,-3467.0996578,0.00011341,2]
[323529568,1714072249906,-5638.79079959,0.00011341,2]
[323529569,1714072249917,-2505.23390041,0.000114,4]
[323529570,1714072249942,-519.09100002,0.000114,4]
[323529571,1714072249986,-406.7734298,0.000114,4]
[323529572,1714072250016,-1333.3111236,0.000114,4]
[323529573,1714072250049,-2135.59054617,0.000114,4]
[323529574,1714072250059,-9349.77622734,0.00011411,2]
[323529575,1714072250069,-150.0,0.00011448,2]
[323529576,1714072250079,-150.0,0.00011453,2]
[323529577,1714072250089,-150.0,0.00011466,2]
[323529578,1714072250099,-310.46434739,0.00011466,2]
[323529579,1714072250110,-150.0,0.00011473,2]
[323529580,1714072250120,-150.0,0.00011474,2]
[323529581,1714072250130,-150.0,0.00011476,2]
[323529582,1714072250139,-150.0,0.00011481,2]
[323529583,1714072250149,-9349.77622734,0.00011481,2]
[323529584,1714072250158,-150.0,0.00011483,2]
[323529585,1714072250168,-150.0,0.00011485,2]
[323529586,1714072250179,-150.0,0.00011485,2]
[323529587,1714072250188,-6024.43891805,0.00011485,2]
[323529588,1714072250199,-150.0,0.00011486,2]
[323529589,1714072250208,-1500.0,0.00011487,2]
[323529590,1714072250218,-150.0,0.00011494,2]
[323529591,1714072250229,-150.0,0.00011497,2]
[323529592,1714072250238,-1300.0,0.000115,4]
[323529593,1714072250248,-150.0,0.00011502,2]
[323529594,1714072250259,-150.0,0.00011504,2]
[323529595,1714072250269,-500.0,0.00011506,2]
[323529596,1714072250279,-500.0,0.00011506,2]
[323529597,1714072250289,-701.94,0.00011506,2]
[323529598,1714072250299,-811.25,0.00011506,2]
[323529599,1714072250309,-500.0,0.00011506,2]
[323529600,1714072250319,-500.0,0.00011506,2]
[323529601,1714072250330,-500.0,0.00011506,2]
[323529602,1714072250340,-500.0,0.00011506,2]
[323529603,1714072250350,-500.0,0.00011506,2]
[323529604,1714072250360,-728.4,0.00011506,2]
[323529605,1714072250370,-500.0,0.00011506,2]
[323529606,1714072250380,-541.87,0.00011506,2]
[323529607,1714072250390,-651.42,0.00011506,2]
[323529608,1714072250399,-906.83,0.00011506,2]
[323529609,1714072250408,-500.0,0.00011506,2]
[323529610,1714072250417,-486.07815883,0.00011506,2]
[323529611,1714072250427,-581.36,0.00011506,2]
[323529612,1714072250437,-500.0,0.00011506,2]
[323529613,1714072250447,-556.61,0.00011506,2]
[323529614,1714072250457,-747.21,0.00011506,2]
[323529615,1714072250467,-639.22740428,0.00011506,2]
[323529616,1714072250477,-624.51,0.00011506,2]
[323529617,1714072250489,-500.0,0.00011506,2]
[323529618,1714072250499,-500.0,0.00011506,2]
[323529619,1714072250508,-581.52,0.00011506,2]
[323529620,1714072250517,-500.0,0.00011506,2]
[323529621,1714072250527,-500.0,0.00011506,2]
[323529622,1714072250537,-500.0,0.00011506,2]
[323529623,1714072250547,-500.0,0.00011506,2]
[323529624,1714072250557,-500.0,0.00011506,2]